fUST/lending_fUST_20251019
["ID","MTS","AMOUNT","RATE_DAILY","PERIOD"]
[391796467,1760837437984,-166.94066072,0.0003399,2]
[391796468,1760837437992,-150.67495818,0.0003399,2]
[391796469,1760837438002,-100463.51233001,0.0003399,2]
[391796470,1760837438011,-259.1112089,0.0003399,2]
[391796471,1760837438020,-3774.02654877,0.0003399,2]
[391796472,1760837438030,-27026.00095714,0.0003399,2]
[391796473,1760837438039,-4493.3977457,0.00036364,2]
[391796474,1760837438049,-1999.0,0.00036958,120]
[391796475,1760837438059,-379105.0,0.00037,5]
[391796476,1760837438068,-965.11,0.00037724,2]
[391796477,1760837438077,-1037.33078998,0.000379,2]
[391796478,1760837438086,-1999.0,0.00037917,120]
[391796479,1760837438096,-412.833,0.00038064,2]
[391796480,1760837438105,-158.14058,0.000383,20]
[391796481,1760837438115,-500.0,0.00038356,7]
[391796482,1760837438125,-624.17,0.00038356,30]
[391796483,1760837438135,-624.17,0.00038356,30]
[391796484,1760837438143,-624.17,0.00038356,30]
[391796485,1760837438152,-624.17,0.00038356,30]
[391796486,1760837438162,-624.17,0.00038356,30]
[391796487,1760837438299,-624.17,0.00038356,30]
[391796488,1760837438309,-624.17,0.00038356,30]
[391796489,1760837438323,-624.17,0.00038356,30]
[391796490,1760837438332,-624.17,0.00038356,30]
[391796491,1760837438342,-624.17,0.00038356,30]
[391796492,1760837438352,-624.17,0.00038356,30]
[391796493,1760837438361,-624.17,0.00038356,30]
[391796494,1760837438371,-624.17,0.00038356,30]
[391796495,1760837438380,-624.17,0.00038356,30]
[391796496,1760837438390,-624.17,0.00038356,30]
[391796497,1760837438399,-624.17,0.00038356,30]
[391796498,1760837438409,-624.17,0.00038356,30]
[391796499,1760837438418,-624.17,0.00038356,30]
[391796500,1760837438427,-624.17,0.00038356,30]
[391796501,1760837438436,-624.17,0.00038356,30]
[391796502,1760837438445,-624.17,0.00038356,30]
[391796503,1760837438455,-624.17,0.00038356,30]
[391796504,1760837438465,-624.17,0.00038356,30]
[391796505,1760837438474,-624.33839608,0.00038356,30]
[391796506,1760837438483,-179.0,0.00038398,7]
[391796507,1760837438493,-1491.97718205,0.0003861,4]
[391796508,1760837438502,-181.0,0.00038811,120]
[391796509,1760837438512,-1999.0,0.00038876,120]
[391796510,1760837438521,-179.0,0.00038955,2]
[391796511,1760837438531,-3259.8904242,0.00038961,2]
[391796512,1760837438545,-940.36,0.00039,2]
[391796513,1760837438555,-179.0,0.00039099,7]
[391796514,1760837438565,-500.0,0.00039178,7]
[391796515,1760837438574,-179.0,0.00039203,2]
[391796516,1760837438584,-391218.9331,0.00039444,7]
[391796517,1760837438593,-503.1297416,0.00039473,3]
[391796518,1760837438603,-287.528901,0.00039654,2]
[391796519,1760837438612,-221.23451577,0.00039699,6]
[391796520,1760837438621,-370000.0,0.000397,2]
[391796521,1760837438630,-672.94653248,0.00039751,2]
[391796522,1760837438640,-500.0,0.00039789,120]
[391796523,1760837438649,-2789.62559805,0.00039799,2]
[391796524,1760837438658,-500.0,0.00039799,120]
[391796525,1760837438668,-191.45415426,0.00039799,120]
[391796526,1760837438677,-150.0,0.00039799,2]
[391796527,1760837438686,-399.17334627,0.000398,2]
[391796528,1760837438695,-1999.0,0.00039835,120]
[391796529,1760837438703,-1635.069398,0.0003989,120]
[391796530,1760837438712,-151.0,0.00039898,120]
[391796531,1760837438722,-163.40686982,0.00039898,120]
[391796532,1760837438731,-300.85345008,0.00039898,120]
[391796533,1760837438740,-250.0,0.00039898,120]
[391796534,1760837438750,-151.0,0.00039898,120]
[391796535,1760837438759,-1000.0,0.00039898,120]
[391796536,1760837438769,-249.79040239,0.00039898,120]
[391796537,1760837438779,-250.0,0.00039898,120]
[391796538,1760837438789,-1026.67783197,0.00039898,120]
[391796539,1760837438799,-152.92006855,0.00039898,120]
[391796540,1760837438809,-151.0,0.00039898,120]
[391796541,1760837438818,-250.0,0.00039898,120]
[391796542,1760837438828,-151.0,0.00039898,120]
[391796543,1760837438838,-250.0,0.00039898,120]
[391796544,1760837438847,-151.0,0.00039898,120]
[391796545,1760837438856,-250.0,0.00039898,120]
[391796546,1760837438867,-252.93767035,0.00039898,120]
[391796547,1760837438876,-256.5934238,0.00039898,120]
[391796548,1760837438886,-151.0,0.00039898,120]
[391796549,1760837438895,-156.99693398,0.00039898,120]
[391796550,1760837438905,-151.0,0.00039898,120]
[391796551,1760837438915,-163.16694868,0.00039898,120]
[391796552,1760837438924,-17300.0,0.00039898,120]
[391796553,1760837438934,-414.0,0.00039898,120]
[391796554,1760837438944,-1612.31932556,0.00039898,120]
[391796555,1760837438954,-429.318,0.00039898,120]
[391796556,1760837438963,-445.202766,0.00039898,120]
[391796557,1760837438972,-461.67526834,0.00039898,120]
[391796558,1760837438981,-478.75725327,0.00039898,120]
[391796559,1760837438990,-496.47127164,0.00039898,120]
[391796560,1760837438999,-256.54766963,0.00039898,120]
[391796561,1760837439009,-514.84070869,0.00039898,120]
[391796562,1760837439019,-533.88981491,0.00039898,120]
[391796563,1760837439028,-553.64373807,0.00039898,120]
[391796564,1760837439038,-574.12855637,0.00039898,120]
[391796565,1760837439048,-151.34424707,0.00039898,120]
[391796566,1760837439058,-595.37131296,0.00039898,120]
[391796567,1760837439067,-617.40005154,0.00039898,120]
[391796568,1760837439077,-640.24385345,0.00039898,120]
[391796569,1760837439086,-663.93287602,0.00039898,120]
[391796570,1760837439096,-688.49839244,0.00039898,120]
[391796571,1760837439105,-153.89377708,0.00039898,120]
[391796572,1760837439115,-713.97283296,0.00039898,120]
[391796573,1760837439125,-740.38982778,0.00039898,120]
[391796574,1760837439134,-767.7842514,0.00039898,120]
[391796575,1760837439144,-796.19226871,0.00039898,120]
[391796576,1760837439153,-825.65138265,0.00039898,120]
[391796577,1760837439163,-250.0,0.00039898,120]
[391796578,1760837439172,-250.0,0.00039898,120]
[391796579,1760837439182,-250.0,0.00039898,120]
[391796580,1760837439191,-250.0,0.00039898,120]
[391796581,1760837439201,-250.0,0.00039898,120]
[391796582,1760837439210,-250.0,0.00039898,120]
[391796583,1760837439220,-250.0,0.00039898,120]
[391796584,1760837439229,-265.68912253,0.00039898,120]
[391796585,1760837439239,-7671.31862471,0.000399,2]
[391796586,1760837439249,-1037.33078998,0.000399,2]
[391796587,1760837439259,-363.0,0.0003996,120]
[391796588,1760837439269,-158.14058,0.0003997,2]
[391796589,1760837439278,-156.27263,0.0003997,2]
[391796590,1760837439287,-500.0,0.0004,7]
[391796591,1760837439296,-7000.0,0.0004,30]
[391796592,1760837439307,-500.0,0.0004,5]
[391796593,1760837439318,-250.0,0.0004,14]
[391796594,1760837439333,-167.7,0.0004,14]
[391796595,1760837439342,-1000.0,0.0004,60]
[391796596,1760837439355,-500.0,0.0004,5]
[391796597,1760837439365,-199.999999,0.0004,120]
[391796598,1760837439374,-3706.49,0.0004,14]
[391796599,1760837439383,-500.0,0.0004,2]
[391796600,1760837439393,-1137.43864593,0.0004,120]
[391796601,1760837439402,-39981.96811527,0.0004,7]
[391796604,1760837439731,-9293.19780335,0.0004,7]
[391796605,1760837439742,-509.32012587,0.0004,7]
[391796606,1760837439754,-1397.97056275,0.0004,7]
[391796607,1760837439778,168.65525285,0.00033989,7]
[391796638,1760837446290,-1075.6164,0.0004,7]
[391796639,1760837446302,-1714.00919805,0.0004,7]
[391796641,1760837446407,-84745.356899,0.0004,7]
[391796642,1760837454456,529.11241254,0.00033989,7]
[391796643,1760837454482,579.4182035,0.00033989,7]
[391796646,1760837462808,198.39597982,0.0003399,120]
[391796657,1760837491556,189018.6918841,0.00036,5]
[391796663,1760837582615,3216.006945,0.0003399,120]
[391796685,1760838425120,-205.42048768,0.00024941,2]
[391796686,1760838425142,-157.12231714,0.00025041,15]
[391796687,1760838425162,-150.0,0.00033989,2]
[391796688,1760838425182,-180.32028701,0.000351,2]
[391796689,1760838425202,-2803.78675126,0.00035616,2]
[391796690,1760838425225,-500.0,0.00035999,30]
[391796691,1760838425250,-500.0,0.00035999,30]
[391796692,1760838425270,-191.45415426,0.00035999,30]
[391796693,1760838425295,-355.28529037,0.00036729,7]
[391796694,1760838425317,-183.65584205,0.00037889,2]
[391796695,1760838425338,-3385.81119906,0.000379,2]
[391796696,1760838425360,-12482.44208816,0.000379,2]
[391796697,1760838425381,-160.0,0.0003793,2]
[391796698,1760838425402,-1383.48091944,0.0003798,3]
[391796699,1760838425428,-11150.0741751,0.0003798,3]
[391796700,1760838425465,-1999.0,0.00037989,120]
[391796701,1760838425488,-260.69306126,0.0003799,2]
[391796702,1760838425510,-7839.72521016,0.0003799,3]
[391796703,1760838425668,-28111.72821705,0.0003799,3]
[391796704,1760838452092,-160.0,0.00037918,2]
[391796705,1760838452113,-1728.52929163,0.0003799,2]
[391796706,1760838452134,-8450.68489564,0.0003799,3]
[391796708,1760838629588,666.0,0.00035863,2]
[391796747,1760838632074,-277.94464223,0.0003789,120]
[391796749,1760838632085,-18.98353372,0.0003789,120]
[391796750,1760838632095,-526.19674795,0.0003789,120]
[391796754,1760838632128,-271.80325205,0.0003789,120]
[391796756,1760838632138,-39.0528417,0.00037899,30]
[391796758,1760838632149,-460.9471583,0.00037899,30]
[391796760,1760838632158,-329.33895836,0.00037989,30]
[391796762,1760838632168,-445.27642181,0.0003799,3]
[391796764,1760838632184,-258.22366975,0.0003799,3]
[391796766,1760838632195,-3693.93437373,0.0003799,3]
[391796858,1760838637856,-135795.29871371,0.0003799,3]
[391796860,1760838637865,-11847.6317286,0.0003799,3]
[391796862,1760838637875,-200.0,0.0003799,10]
[391796864,1760838637884,-233.261959,0.0003799,10]
[391796866,1760838637894,-1999.0,0.00037999,120]
[391796868,1760838637904,-810981.72427462,0.00038,5]
[391796871,1760838637913,-4580.13,0.00038,14]
[391796873,1760838637923,-502.14560574,0.00038,5]
[391796874,1760838637931,-188.0,0.00038016,2]
[391796875,1760838637941,-1356.0,0.00038063,120]
[391796876,1760838637951,-900.0,0.00038082,7]
[391796877,1760838637960,-8762.04582367,0.00038346,3]
[391796878,1760838637969,-740.47698304,0.00038346,3]
[391796879,1760838637979,-615.0792766,0.00038356,30]
[391796880,1760838637988,-301.03981834,0.00038356,30]
[391796881,1760838637998,-222.46671189,0.00038356,30]
[391796882,1760838638008,-248.35364842,0.00038356,30]
[391796883,1760838638020,-156.01138512,0.00038356,30]
[391796884,1760838638030,-151.70313933,0.00038356,30]
[391796885,1760838638040,-441.26954062,0.00038356,30]
[391796886,1760838638049,-301.88307827,0.00038356,30]
[391796887,1760838638059,-287.95983793,0.00038356,30]
[391796888,1760838638068,-232.12861908,0.00038356,30]
[391796889,1760838638077,-631.59,0.00038356,30]
[391796890,1760838638087,-631.59,0.00038356,30]
[391796891,1760838638097,-631.59,0.00038356,30]
[391796892,1760838638106,-631.59,0.00038356,30]
[391796893,1760838638117,-631.59,0.00038356,30]
[391796894,1760838638127,-631.59,0.00038356,30]
[391796895,1760838638136,-631.59,0.00038356,30]
[391796896,1760838638147,-631.59,0.00038356,30]
[391796897,1760838638157,-631.59,0.00038356,30]
[391796898,1760838638168,-631.59,0.00038356,30]
[391796899,1760838638179,-631.59,0.00038356,30]
[391796900,1760838638190,-631.59,0.00038356,30]
[391796901,1760838638200,-631.59,0.00038356,30]
[391796902,1760838638210,-631.59,0.00038356,30]
[391796903,1760838638220,-631.59,0.00038356,30]
[391796904,1760838638229,-631.59,0.00038356,30]
[391796905,1760838638239,-631.59,0.00038356,30]
[391796906,1760838638249,-631.59,0.00038356,30]
[391796907,1760838638259,-631.59,0.00038356,30]
[391796908,1760838638268,-631.59,0.00038356,30]
[391796909,1760838638278,-631.59,0.00038356,30]
[391796910,1760838638288,-631.59,0.00038356,30]
[391796911,1760838638298,-631.59,0.00038356,30]
[391796912,1760838638308,-631.78844286,0.00038356,30]
[391796913,1760838638317,-500.0,0.00038356,120]
[391796914,1760838638327,-500.0,0.00038356,120]
[391796915,1760838638336,-500.0,0.00038356,120]
[391796916,1760838638346,-515.961785,0.00038356,120]
[391796917,1760838638356,-268.1435327,0.0003848,120]
[391796918,1760838638366,-28274.40101957,0.0003848,120]
[391796919,1760838638376,-3002.0,0.000385,120]
[391796920,1760838638387,-411.0,0.00038528,2]
[391796921,1760838638397,-160.0,0.00038598,2]
[391796922,1760838638407,-12576.27233032,0.0003861,4]
[391796923,1760838638417,-8762.04582367,0.00038612,3]
[391796924,1760838638427,-740.47698304,0.00038612,3]
[391796925,1760838638436,-900.0,0.00038904,7]
[391796926,1760838638446,-1999.0,0.00038958,120]
[391796927,1760838638456,-4080.2721664,0.00039,120]
[391796928,1760838638466,-1000.0,0.00039,2]
[391796929,1760838638475,-469.88418234,0.00039,6]
[391796930,1760838638486,-151.0,0.00039,17]
[391796931,1760838638496,-152.594033,0.00039,120]
[391796932,1760838638506,-151.0,0.00039,120]
[391796933,1760838638516,-151.0,0.00039,120]
[391796934,1760838638527,-151.0,0.00039,120]
[391796935,1760838638656,-151.0,0.00039,120]
[391796936,1760838638667,-151.0,0.00039,120]
[391796937,1760838638676,-151.0,0.00039,120]
[391796938,1760838638686,-151.0,0.00039,120]
[391796939,1760838638696,-151.0,0.00039,120]
[391796940,1760838638707,-151.0,0.00039,120]
[391796941,1760838638716,-151.0,0.00039,120]
[391796942,1760838638726,-151.0,0.00039,120]
[391796943,1760838638735,-151.0,0.00039,120]
[391796944,1760838638745,-151.0,0.00039,120]
[391796945,1760838638755,-207.012427,0.00039,120]
[391796946,1760838638764,-151.0,0.00039,120]
[391796947,1760838638774,-154.710884,0.00039,120]
[391796948,1760838638784,-207.012427,0.00039,120]
[391796949,1760838638794,-207.012427,0.00039,120]
[391796950,1760838638803,-200.0,0.00039108,120]
[391796951,1760838638814,-235.90784856,0.00039144,23]
[391796952,1760838638823,-151.0,0.000392,13]
[391796953,1760838638833,-162.3003874,0.00039258,2]
[391796954,1760838638842,-151.0,0.000393,19]
[391796955,1760838638852,-8433.1886182,0.00039344,2]
[391796956,1760838638861,-153.572685,0.000394,120]
[391796957,1760838638871,-161.649348,0.000394,120]
[391796958,1760838638881,-154.816755,0.000394,120]
[391796959,1760838638890,-330.654357,0.000394,60]
[391796960,1760838638900,-330.654357,0.000394,60]
[391796961,1760838638910,-330.654357,0.000394,60]
[391796962,1760838638920,-330.654357,0.000394,60]
[391796963,1760838638929,-154.498225,0.000394,120]
[391796964,1760838638939,-151.0,0.000394,120]
[391796965,1760838638949,-1480.95396608,0.00039434,3]
[391796966,1760838638962,-1534990.2319,0.00039444,7]
[391796967,1760838638972,-330.654357,0.00039444,60]
[391796968,1760838638982,-330.654357,0.00039444,60]
[391796969,1760838638991,-330.654357,0.00039444,60]
[391796970,1760838639001,-330.654357,0.00039444,60]
[391796971,1760838639015,-151.0,0.00039444,120]
[391796972,1760838639025,-154.279769,0.00039444,120]
[391796973,1760838639035,-151.0,0.00039444,120]
[391796974,1760838639046,-159.448148,0.00039444,120]
[391796975,1760838639059,-166.426513,0.00039444,120]
[391796976,1760838639070,-151.0,0.00039444,120]
[391796977,1760838639080,-153.377047,0.00039444,120]
[391796978,1760838639093,-151.0,0.00039444,15]
[391796979,1760838639103,-151.0,0.00039444,15]
[391796980,1760838639114,-151.0,0.00039444,120]
[391796981,1760838639126,-151.0,0.00039444,120]
[391796982,1760838639137,-151.0,0.00039444,120]
[391796983,1760838639149,-151.0,0.00039444,120]
[391796984,1760838639159,-151.0,0.00039444,120]
[391796985,1760838639170,-253.200874,0.00039444,120]
[391796986,1760838639181,-151.0,0.00039444,120]
[391796987,1760838639192,-151.0,0.00039444,120]
[391796988,1760838639203,-154.7388,0.00039444,120]
[391796989,1760838639212,-151.0,0.00039444,120]
[391796990,1760838639223,-151.0,0.00039444,120]
[391796991,1760838639232,-151.0,0.00039444,120]
[391796992,1760838639242,-151.0,0.00039444,120]
[391796993,1760838639252,-151.0,0.00039444,120]
[391796994,1760838639261,-216.279113,0.00039444,120]
[391796995,1760838639271,-207.012427,0.00039444,120]
[391796996,1760838639280,-153.260392,0.00039444,120]
[391796997,1760838639291,-207.012427,0.00039444,120]
[391796998,1760838639301,-207.012427,0.00039444,120]
[391796999,1760838639310,-15127.17895645,0.000395,120]
[391797000,1760838639320,-900.0,0.00039726,7]
[391797001,1760838639329,-1211.30375846,0.00039799,2]
[391797002,1760838639339,-206.65168918,0.00039799,2]
[391797003,1760838639350,-2151.27547503,0.00039799,2]
[391797004,1760838639359,-371.97304052,0.00039799,2]
[391797005,1760838639368,-247.19285842,0.00039799,2]
[391797007,1760838639378,-203.38,0.000398,120]
[391797008,1760838639388,-718.51202328,0.000398,2]
[391797009,1760838639398,-1277.35470805,0.000398,2]
[391797010,1760838639407,-14624.928171,0.000399,120]
[391797011,1760838639417,-1999.0,0.00039917,120]
[391797012,1760838639426,-1652.250367,0.0003994,13]
[391797014,1760838639436,-1000.0,0.0003996,13]
[391797016,1760838639445,-501.0226827,0.00039973,2]
[391797018,1760838639455,-1000.0,0.0003998,13]
[391797020,1760838639464,-1167.658533,0.0003998,13]
[391797021,1760838639474,-7347.3201695,0.00039988,2]
[391797023,1760838639483,-1315.2690103,0.00039988,2]
[391797024,1760838639492,-509.54,0.00039989,3]
[391797025,1760838639502,-254.77,0.00039989,3]
[391797026,1760838639513,-764.33,0.00039989,3]
[391797027,1760838639522,-151.0,0.00039999,120]
[391797028,1760838639531,-154.224758,0.00039999,120]
[391797029,1760838639541,-152.331655,0.00039999,120]
[391797030,1760838639550,-151.0,0.00039999,120]
[391797031,1760838639559,-151.0,0.00039999,15]
[391797032,1760838639568,-151.0,0.00039999,15]
[391797034,1760838639577,-151.0,0.00039999,120]
[391797036,1760838639586,-151.0,0.00039999,120]
[391797039,1760838639596,-151.0,0.00039999,120]
[391797043,1760838639606,-151.0,0.00039999,120]
[391797046,1760838639615,-151.0,0.00039999,120]
[391797049,1760838639626,-151.0,0.00039999,120]
[391797052,1760838639635,-151.0,0.00039999,120]
[391797055,1760838639644,-151.0,0.00039999,120]
[391797058,1760838639654,-1888.0,0.00039999,60]
[391797060,1760838639663,-250.0,0.00039999,120]
[391797062,1760838639673,-163.40686982,0.00039999,120]
[391797064,1760838639682,-252.93767035,0.00039999,120]
[391797066,1760838639692,-3023.30760027,0.00039999,60]
[391797068,1760838639702,-151.0,0.00039999,120]
[391797070,1760838639711,-250.0,0.00039999,120]
[391797072,1760838639722,-448.6714144,0.00039999,60]
[391797074,1760838639731,-163.16694868,0.00039999,120]
[391797076,1760838639740,-151.0,0.00039999,120]
[391797079,1760838639750,-250.0,0.00039999,120]
[391797082,1760838639759,-151.0,0.00039999,120]
[391797085,1760838639768,-250.0,0.00039999,120]
[391797088,1760838639777,-151.0,0.00039999,120]
[391797091,1760838639786,-250.0,0.00039999,120]
[391797094,1760838639796,-414.0,0.00039999,120]
[391797097,1760838639805,-156.99693398,0.00039999,120]
[391797100,1760838639815,-151.0,0.00039999,120]
[391797103,1760838639824,-17300.0,0.00039999,120]
[391797106,1760838639834,-256.5934238,0.00039999,120]
[391797109,1760838639843,-153.89377708,0.00039999,120]
[391797112,1760838639852,-250.0,0.00039999,120]
[391797115,1760838639861,-429.318,0.00039999,120]
[391797118,1760838639871,-249.79040239,0.00039999,120]
[391797121,1760838639880,-151.0,0.00039999,120]
[391797124,1760838639889,-1612.31932556,0.00039999,120]
[391797127,1760838639898,-256.54766963,0.00039999,120]
[391797130,1760838639907,-445.202766,0.00039999,120]
[391797133,1760838639917,-250.0,0.00039999,120]
[391797136,1760838639926,-461.67526834,0.00039999,120]
[391797139,1760838639944,-250.0,0.00039999,120]
[391797141,1760838639955,-151.34424707,0.00039999,120]
[391797143,1760838639965,-478.75725327,0.00039999,120]
[391797145,1760838639974,-250.0,0.00039999,120]
[391797147,1760838639984,-250.0,0.00039999,120]
[391797148,1760838639993,-496.47127164,0.00039999,120]
[391797150,1760838640002,-250.0,0.00039999,120]
[391797152,1760838640019,-514.84070869,0.00039999,120]
[391797154,1760838640029,-250.0,0.00039999,120]
[391797157,1760838640039,-533.88981491,0.00039999,120]
[391797158,1760838640048,-265.68912253,0.00039999,120]
[391797160,1760838640058,-553.64373807,0.00039999,120]
[391797162,1760838640068,-151.0,0.00039999,120]
[391797165,1760838640078,-574.12855637,0.00039999,120]
[391797167,1760838640088,-152.92006855,0.00039999,120]
[391797169,1760838640098,-300.85345008,0.00039999,120]
[391797171,1760838640108,-595.37131296,0.00039999,120]
[391797173,1760838640118,-617.40005154,0.00039999,120]
[391797175,1760838640128,-640.24385345,0.00039999,120]
[391797177,1760838640138,-663.93287602,0.00039999,120]
[391797179,1760838640147,-1000.0,0.00039999,120]
[391797181,1760838640157,-688.49839244,0.00039999,120]
[391797183,1760838640167,-1026.67783197,0.00039999,120]
[391797185,1760838640177,-151.0,0.00039999,120]
[391797187,1760838640187,-713.97283296,0.00039999,120]
[391797189,1760838640196,-740.38982778,0.00039999,120]
[391797192,1760838640206,-259.354289,0.00039999,120]
[391797195,1760838640216,-767.7842514,0.00039999,120]
[391797197,1760838640225,-796.19226871,0.00039999,120]
[391797199,1760838640235,-825.65138265,0.00039999,120]
[391797201,1760838640244,-151.0,0.00039999,120]
[391797203,1760838640253,-207.012427,0.00039999,120]
[391797205,1760838640263,-207.012427,0.00039999,120]
[391797207,1760838640272,-622911.8889645,0.0004,7]
[391797227,1760838640459,-482.80157636,0.0004,7]
[391797229,1760838640470,-970.77949872,0.0004,7]
[391797402,1760838646528,-150.0,0.00038528,2]
[391797403,1760838646538,-207.012427,0.00039,120]
[391797404,1760838646548,-152.621454,0.00039,120]
[391797405,1760838646557,-207.012427,0.00039444,120]
[391797406,1760838646566,-207.012427,0.00039999,120]
[391797407,1760838646576,-207.012427,0.00039999,120]
[391797408,1760838646585,-6869.328838,0.0004,7]
[391797413,1760839052556,20000.0,0.00034084,60]
[391797415,1760839809077,275.500372,0.00013699,2]
[391797416,1760839809278,275.500372,0.00020187,2]
[391797937,1760839838009,-150.0,0.000245,2]
[391797938,1760839838019,-150.0,0.000245,2]
[391797939,1760839838029,-157.12231714,0.00025041,15]
[391797940,1760839838040,-172.5,0.000251,2]
[391797941,1760839838050,-150.0,0.00025674,2]
[391797942,1760839838060,-257.41006976,0.000257,2]
[391797943,1760839838069,-275.500372,0.00026676,2]
[391797944,1760839838078,-2351.9226064,0.00027263,2]
[391797945,1760839838088,-278.3297787,0.00027487,2]
[391797946,1760839838097,-178.47048618,0.00028119,2]
[391797947,1760839838107,-500.0,0.00028216,2]
[391797949,1760839838264,-168.65525285,0.00028216,2]
[391797950,1760839838275,-500.0,0.00028216,2]
[391797951,1760839838289,-500.0,0.00028216,2]
[391797952,1760839838299,-500.0,0.00028216,2]
[391797953,1760839838309,-500.0,0.00028216,2]
[391797954,1760839838318,-500.0,0.00028216,2]
[391797955,1760839838328,-500.0,0.00028216,2]
[391797956,1760839838338,-500.0,0.00028216,2]
[391797957,1760839838348,-500.0,0.00028216,2]
[391797958,1760839838357,-500.0,0.00028216,2]
[391797959,1760839838368,-500.0,0.00028216,2]
[391797960,1760839838378,-500.0,0.00028216,2]
[391797961,1760839838388,-212.62419766,0.00028216,2]
[391797962,1760839838398,-500.0,0.00028216,2]
[391797963,1760839838408,-500.0,0.00028216,2]
[391797964,1760839838418,-500.0,0.00028216,2]
[391797965,1760839838428,-500.0,0.00028216,2]
[391797966,1760839838438,-500.0,0.00028216,2]
[391797967,1760839838448,-296.40219118,0.00028216,2]
[391797968,1760839838462,-500.0,0.00028216,2]
[391797969,1760839838472,-500.0,0.00028216,2]
[391797970,1760839838483,-394.78399147,0.00028216,2]
[391797971,1760839838497,-105.21600853,0.00028216,2]
[391797972,1760839838508,-500.0,0.00028216,2]
[391797973,1760839838517,-500.0,0.00028216,2]
[391797974,1760839838528,-500.0,0.00028216,2]
[391797975,1760839838538,-300.0,0.00028216,2]
[391797976,1760839838548,-300.0,0.00028216,2]
[391797977,1760839838557,-300.0,0.00028216,2]
[391797978,1760839838567,-300.0,0.00028216,2]
[391797979,1760839838577,-1200.0,0.00028216,2]
[391797980,1760839838588,-1271.59846737,0.00028217,2]
[391798025,1760839840464,-1000.0,0.00028217,2]
[391798123,1760839846498,-2915.47223427,0.00028217,2]
[391798124,1760840135460,190.28312295,0.00024142,2]
[391798125,1760840353181,1000.0,0.00033982,60]
[391798126,1760840355491,1000.0,0.00033982,60]
[391798127,1760840356557,1000.0,0.00033982,60]
[391798128,1760840357152,1000.0,0.00033982,60]
[391798129,1760840357712,1000.0,0.00033982,60]
[391798130,1760840358136,1000.0,0.00033982,60]
[391798131,1760840404952,3479.0,0.00033982,60]
[391798140,1760840887594,2805.46908452,0.00033982,120]
[391798149,1760840912751,237.98182985,0.00024,60]
[391798152,1760840916173,109.16126746,0.00026,30]
[391798153,1760840916195,1493.61,0.00026,30]
[391798158,1760840923183,205.42048768,0.00024142,2]
[391798206,1760841032280,-1167.13047494,0.00024142,2]
[391798210,1760841032336,-824.44,0.00024142,2]
[391798218,1760841033135,174.69,0.00025205,14]
[391798219,1760841033155,215.85310535,0.00025205,14]
[391798220,1760841033264,488.37,0.00020988,2]
[391798221,1760841033662,976.74,0.00022896,2]
[391798226,1760841040448,-73.46548757,0.00024142,2]
[391798228,1760841040457,-752.27,0.00024142,2]
[391798230,1760841040467,-88.95010289,0.00024804,2]
[391798321,1760841112896,468.59,0.00020085,2]
[391798322,1760841113450,937.18,0.00021911,2]
[391798323,1760841113855,1405.78,0.00023737,2]
[391798324,1760841192481,432.81,0.00020098,2]
[391798325,1760841192943,865.62,0.00021925,2]
[391798326,1760841193402,1298.43,0.00023752,2]
[391798327,1760841272215,399.76,0.000201,2]
[391798328,1760841272625,799.52,0.00021927,2]